Cogmind - Beta 13 *** ADVENTURER MODE // 2024.05.17 @ 21:36:17 Player: Adhoah Result: Destroyed by G-47 Trooper with Particle Gun Performance ------------- Evolutions (2) 1000 Regions Visited (3) 600 Robots Destroyed (131) 655 Value Destroyed (2738) 2738 Prototype IDs (1) 20 Alien Tech Used (0) 0 Bonus (81) 81 TOTAL SCORE: 5094 Bonus ------- High Alert Combat Kills 81 Cogmind --------- Core Integrity 0/550 Matter 197/300 Energy 290/290 System Corruption 0% Temperature Warm (126) Movement Core (900) Ox17 Location -8/Materials Parts ------- > --- POWER (1) -------- Improved Deuterium Engine > --- PROPULSION (4) --- (None) > --- UTILITY (4) ------ High-capacity Storage Unit > --- WEAPON (2) ------- Rocket Launcher > --- INVENTORY (20) --- Improved Deuterium Engine Improved Deuterium Engine Wheel Cooling System High-capacity Storage Unit High-capacity Storage Unit High-capacity Battery (250) Advanced Weight Redist. System Targeting Computer Advanced Targeting Computer Core Shielding Power Shielding Weapon Shielding Advanced Beam Rifle Plasma Cannon Plasma Cannon Peak State ------------ > --- POWER ------------ Improved Deuterium Engine > --- PROPULSION ------- Wheel Wheel Wheel Wheel > --- UTILITY ---------- Cryofiber Web High-capacity Storage Unit Heavy Armor Plating > --- WEAPON ----------- Plasma Cannon Plasma Cannon > --- INVENTORY -------- Improved Deuterium Engine Improved Deuterium Engine Improved Deuterium Engine Wheel High-capacity Storage Unit High-capacity Storage Unit Advanced Weight Redist. System Targeting Computer Particle Charger Core Shielding Power Shielding Weapon Shielding Advanced Beam Rifle Advanced Beam Rifle Plasma Cannon Plasma Cannon Shock Bomb Launcher Rocket Launcher [Rating: 30] Favorites ----------- Power Ion Engine Engine Ion Engine Propulsion Wheel Treads Light Treads Leg Aluminum Leg Wheel Wheel Hover Unit Hover Unit Utility High-capacity Storage Unit Device Heat Sink Storage High-capacity Storage Unit Processor Targeting Computer Protection Heavy Armor Plating Weapon Medium Laser Energy Gun Medium Laser Energy Cannon Plasma Cannon Ballistic Gun Assault Rifle Launcher Grenade Launcher Special Weapon Mining Laser Slashing Weapon Mining Claw Build | -11 -10 -9 -8 ------- Run | Yrd Mat Mat Mat Slots Evolved 4 | . . 2 2 Power . | . . . . Propulsion 2 | . . 1 1 Utility 2 | . . 1 1 Weapon . | . . . . Parts Attached 109 | 12 24 27 46 Power 10 | 1 2 2 5 Engine 10 | 1 2 2 5 Core . | . . . . Reactor . | . . . . Propulsion 33 | 4 11 7 11 Treads 1 | . . 1 . Leg 4 | 2 2 . . Wheel 26 | 2 7 6 11 Hover 2 | . 2 . . Flight . | . . . . Utility 28 | 4 3 7 14 Device 18 | 3 . 6 9 Storage 7 | 1 2 1 3 Processor 1 | . 1 . . Hackware . | . . . . Protection 2 | . . . 2 Artifact . | . . . . Weapon 38 | 3 8 11 16 Energy Gun 22 | 1 3 8 10 Energy Cannon 6 | . . 1 5 Ballistic Gun 1 | 1 . . . Ballistic Cannon . | . . . . Launcher 3 | . 2 . 1 Special Weapon 5 | 1 3 1 . Impact Weapon . | . . . . Slashing Weapon 1 | . . 1 . Piercing Weapon . | . . . . Special Melee Weapon . | . . . . Unidentified Prototypes 1 | . . . 1 Parts Lost 24 | . . 5 19 Power 3 | . . 1 2 Propulsion 11 | . . 3 8 Utility 6 | . . 1 5 Weapon 4 | . . . 4 Highest Loss Streak 12 | . . 2 12 To Critical Strikes 2 | . . . 2 Average Slot Usage (%) 92 | . 99 87 90 Engine 10 | . 14 9 8 Wheel 27 | . 27 21 32 Device 9 | . . 16 13 Storage 13 | . 14 12 13 Processor 6 | . 13 3 . Protection 1 | . . . 3 Energy Gun 16 | . 16 21 11 Energy Cannon 1 | . . . 6 Launcher 2 | . 5 . . Special Weapon 2 | . 6 . . Naked Turns . | . . . . Heaviest Build 80 | 9 50 54 80 Greatest Support 49 | 20 20 30 49 Greatest Overweight (x) 5 | . 2 5 5 Average Overweight (x) 1 | . 1 2 1 Largest Inventory Capacity 20 | 5 20 20 20 Average Capacity 19 | 5 19 20 20 Most Carried 20 | 5 20 20 20 Average Carried 18 | 4 18 19 19 Final Capacity 20 | 5 20 20 20 Final Carried 20 | 5 20 19 16 Class Distribution -------------------- 58% | Mutant 41% | Scavenger-Mutant Dominant Class ---------------- Mutant | -10/Materials Scavenger-Mutant | -9/Materials Scavenger-Mutant | -8/Materials Resources | -11 -10 -9 -8 ----------- Run | Yrd Mat Mat Mat Matter Collected 1786 | 369 675 345 397 Remotely . | . . . . Salvage Created 4470 | 168 839 1574 1889 Parts 271 | 12 62 93 104 Haulers Intercepted 3 | . 2 1 . Recyclers Shooed 7 | . . 4 3 Parts Field Recycled . | . . . . Retrieved Matter . | . . . . Parts Self-Destructed . | . . . . Prevented . | . . . . Kills | -11 -10 -9 -8 ------- Run | Yrd Mat Mat Mat Combat Hostiles Destroyed 66 | 1 12 18 35 Guns 38 | 1 9 18 10 Cannons 11 | . . . 11 AOE 15 | . 3 . 12 Classes Destroyed 12 | 3 6 2 1 Worker 19 | 1 3 5 10 Builder 16 | . 5 7 4 Tunneler 7 | 4 2 1 . Hauler 3 | . 2 1 . Recycler 10 | . 1 5 4 Mechanic 2 | . 1 . 1 Watcher 8 | . 2 3 3 Swarmer 15 | . 3 3 9 Grunt 37 | 1 9 10 17 Brawler 2 | . . 1 1 Sentry 11 | . . 4 7 Hunter 1 | . . . 1 Best Kill Streak 22 | 3 6 4 22 Combat Bots Only 20 | 1 3 4 20 Max Kills in Single Turn 3 | 1 2 2 3 Gunslinging 1 | . . 1 . Exploded 3 | . 2 . 3 Melee . | . . . . Uniques/NPCs Destroyed . | . . . . Combat | -11 -10 -9 -8 -------- Run | Yrd Mat Mat Mat Hostile Shots Fired 431 | 3 61 91 276 Missed 120 | . 17 25 78 Damage Taken 3066 | 26 375 572 2093 Core 730 | . 86 94 550 Absorbed by Shields 54 | . . 28 26 Ignored by Resistances 923 | 8 121 184 610 Regen/Repaired (Parts) 83 | . 36 47 . Core Remaining (%) 80 | 100 65 76 . Volleys Fired 361 | 24 106 114 117 Largest 2 | 2 2 2 2 Hottest 160 | 150 150 115 160 Shots Fired 591 | 25 124 223 219 Gun 505 | 20 106 219 160 Cannon 51 | . . . 51 Launcher 12 | . 4 . 8 Special 23 | 5 14 4 . Kinetic . | . . . . Thermal 578 | 25 120 222 211 Explosive 12 | . 4 . 8 Electromagnetic 1 | . . 1 . Robot Hit Streak 36 | 12 23 36 20 Robot Miss Streak 4 | 1 2 4 3 Penetration Max . | . . . . Secondary Targets 7 | . . 4 3 Max Gunslinging Chain 1 | . . 1 1 Shots Hit Robots 439 | 17 88 167 167 Core Hits 196 | 7 43 63 83 Critical Kills . | . . . . Critical Parts Destroyed . | . . . . Critical Strikes 40 | 2 8 19 11 Burn 40 | 2 8 19 11 Melee Attacks 2 | . . 2 . Impact . | . . . . Slashing 2 | . . 2 . Piercing . | . . . . Sneak Attacks . | . . . . Combat Hostiles . | . . . . Follow-up Attacks . | . . . . Damage Inflicted 8683 | 215 1359 2196 4913 Guns 6108 | 215 1101 2196 2596 Cannons 1205 | . . . 1205 Explosions 1370 | . 258 . 1112 Melee . | . . . . Ramming . | . . . . Kinetic . | . . . . Thermal 7313 | 215 1101 2196 3801 Explosive 1370 | . 258 . 1112 Electromagnetic . | . . . . Impact . | . . . . Slashing . | . . . . Piercing . | . . . . Highest Corruption 6 | . . 6 . Average Corruption 5 | . . 5 . Corruption Purged . | . . . . Corruption Blocked . | . . . . Effects 25 | . . 25 . Message Errors 7 | . . 7 . Matter Fused 3 | . . 3 . Heat Flow Errors 3 | . . 3 . Energy Discharges 3 | . . 3 . Data Loss (minor) 5 | . . 5 . Misfires 1 | . . 1 . Alerts 1 | . . 1 . Weapon Failures 2 | . . 2 . Overload Shots . | . . . . Overflow Damage 84 | . . . 84 Projectiles 16 | . . . 16 Explosions 68 | . . . 68 Melee . | . . . . Knockbacks . | . . . . Impact . | . . . . Kinetic . | . . . . Secondary . | . . . . Self-Inflicted Damage 34 | . 6 . 28 Shots 3 | . 1 . 2 Rammed . | . . . . Targets Rammed . | . . . . Kicked . | . . . . Crushed . | . . . . Highest Temperature 506 | 110 219 375 506 Average Temperature 101 | 36 44 113 146 Received Heat Transfer 1447 | 18 243 340 846 Effects 9 | . . 2 7 Energy Bleed 3 | . . 2 1 Interference 2 | . . . 2 Damage (major) 4 | . . . 4 Siege Activations . | . . . . Robots Corrupted . | . . . . Combat Hostiles . | . . . . Parts Fried . | . . . . Impact Corruptions . | . . . . Robots Melted 2 | . . . 2 Combat Hostiles 2 | . . . 2 Parts Melted 51 | . 10 24 17 Heat Transferred 20071 | 777 3848 7622 7824 Parts Sabotaged . | . . . . Parts Stolen . | . . . . Parts Stripped . | . . . . Power Chain Reactions . | . . . . Alert | -11 -10 -9 -8 ------- Run | Yrd Mat Mat Mat Peak Influence 667 | 45 259 299 667 Initial 25 | . 25 22 12 Average 121 | 25 97 176 112 Maximum Alert Level 2 | . 1 1 2 Low Security (%) 84 | 100 98 64 86 Level 1 14 | . 1 35 12 Level 2 . | . . . 1 Level 3 . | . . . . Level 4 . | . . . . Level 5 . | . . . . High Security . | . . . . Max Security . | . . . . Squads Dispatched 10 | . 2 3 5 Investigation 5 | . 2 2 1 Extermination . | . . . . Reinforcement 5 | . . 1 4 Assault . | . . . . Garrison . | . . . . Intercept . | . . . . Searches Triggered . | . . . . Construction Impeded 2 | . . . 2 Haulers Reinforced . | . . . . Active Scanning Responses . | . . . . Cargo Convoy Interrupts . | . . . . Stealth | -11 -10 -9 -8 --------- Run | Yrd Mat Mat Mat Distress Signals 5 | . 1 3 1 Communications Jammed . | . . . . Distress Signals . | . . . . Times Spotted 90 | 1 17 25 47 Peak Tracking Total 11 | 1 3 4 11 Tactical Retreats 2 | . 1 . 1 Traps | -11 -10 -9 -8 ------- Run | Yrd Mat Mat Mat Traps Triggered 8 | . . 4 4 Indirectly . | . . . . Trap Hack Attempts . | . . . . Triggered . | . . . . Disarmed . | . . . . Reprogrammed . | . . . . Reused . | . . . . Traps Extracted . | . . . . Installed . | . . . . Triggered . | . . . . Machines | -11 -10 -9 -8 ---------- Run | Yrd Mat Mat Mat Machines Disabled 5 | . 1 . 4 Max in Single Turn 1 | . 1 . 1 Machines Repaired . | . . . . Machines Dismantled . | . . . . Machines Sabotaged . | . . . . Overloaded Fab Kills . | . . . . Hacking | -11 -10 -9 -8 --------- Run | Yrd Mat Mat Mat Machines Accessed 19 | . 10 7 2 Terminals 12 | . 7 4 1 Fabricators . | . . . . Repair Stations 2 | . 1 1 . Recycling Units 4 | . 2 1 1 Scanalyzers 1 | . . 1 . Garrison Access . | . . . . Total Hacks 53 | . 23 23 7 Successful 40 | . 18 18 4 Failed 13 | . 5 5 3 Catastrophic 2 | . 1 1 . Database Lockouts . | . . . . Manual 1 | . . 1 . Terminals 27 | . 13 11 3 Fabricators . | . . . . Repair Stations 5 | . 3 2 . Recycling Units 12 | . 7 1 4 Scanalyzers 9 | . . 9 . Garrison Access . | . . . . Terminal Hacks 17 | . 10 6 1 Record 3 | . . 3 . Scanalyzer Index 1 | . 1 . . Alert Level 3 | . 3 . . Locate Traps 3 | . 2 . 1 Dispatch Records 1 | . 1 . . Maintenance Status 1 | . 1 . . Transport Status 1 | . 1 . . Hauler Manifests 2 | . 1 1 . Registered Components 1 | . . 1 . Zone Layout 1 | . . 1 . Fabricator Hacks . | . . . . Repair Station Hacks 4 | . 2 2 . Scan Component 2 | . 1 1 . Repair 2 | . 1 1 . Recycling Unit Hacks 10 | . 6 1 3 Recycle Component 1 | . 1 . . Process 2 | . 1 . 1 Report Inventory 5 | . 3 1 1 Retrieve Matter 1 | . . . 1 Retrieve Components 1 | . 1 . . Scanalyzer 9 | . . 9 . Insert Component 4 | . . 4 . Analyze 5 | . . 5 . Garrison Access Hacks . | . . . . Unauthorized Hacks . | . . . . Terminals . | . . . . Fabricators . | . . . . Repair Stations . | . . . . Recycling Units . | . . . . Scanalyzers . | . . . . Garrison Access . | . . . . Data Cores Recovered . | . . . . Used . | . . . . Hacking Detections 8 | . 3 4 1 Full Trace Events 4 | . 2 1 1 Feedback Events . | . . . . Feedback Blocked . | . . . . Robot Schematics Acquired . | . . . . Robots Built . | . . . . Authchips . | . . . . Time . | . . . . Total Robot Build Rating . | . . . . Part Schematics Acquired 4 | . . 4 . Parts Built . | . . . . Authchips . | . . . . Time . | . . . . Total Part Build Rating . | . . . . Parts Repaired 2 | . 1 1 . Time 52 | . 26 26 . Parts Recycled 1 | . 1 . . Recycled Matter 188 | . 115 . 73 Retrieved Matter 73 | . . . 73 Retrieved Components 3 | . 3 . . Parts Scanalyzed 4 | . . 4 . Part Schematics Acquired 4 | . . 4 . Parts Damaged . | . . . . Bothacking | -11 -10 -9 -8 ------------ Run | Yrd Mat Mat Mat Used RIF Installer . | . . . . Robots Hacked . | . . . . Non-combat . | . . . . Combat . | . . . . Robot Hacks Applied . | . . . . Relay Couplers Released . | . . . . Fabnet Peak Effective % . | . . . . Robots Rewired . | . . . . Allies Hacked . | . . . . Hacks Repelled . | . . . . Allies | -11 -10 -9 -8 -------- Run | Yrd Mat Mat Mat Total Allies . | . . . . Largest Group . | . . . . Highest-Rated Group . | . . . . Highest-Rated Ally . | . . . . Total Orders . | . . . . Ally Attacks . | . . . . Total Damage . | . . . . Kills . | . . . . Allies Corrupted . | . . . . Allies Melted . | . . . . Intel | -11 -10 -9 -8 ------- Run | Yrd Mat Mat Mat Robot Analysis Total . | . . . . Derelict Logs Recovered . | . . . . Drone Launches . | . . . . Drone Recoveries . | . . . . Exploration | -11 -10 -9 -8 ------------- Run | Yrd Mat Mat Mat Turns Passed 4037 | 246 1415 1225 1151 Spaces Moved 2489 | 206 912 647 724 Core 34 | 26 . 8 . Treads 18 | . . 18 . Legs 1 | . 1 . . Wheels 2436 | 180 911 621 724 Hover . | . . . . Flight . | . . . . Fastest Speed 50 | 50 80 95 95 Average Speed 105 | 76 109 118 96 Slowest Speed 320 | 80 260 320 155 Overloaded Moves . | . . . . Propulsion Burnouts . | . . . . Robots Hopped . | . . . . Cave-ins Triggered . | . . . . Exploration Rate (%) 51 | 6 98 52 48 Regions Visited 3 Branch Regions . Pre-discovered Areas . | . . . . Known Exits Taken . | . . . . Unknown Exits Taken 3 | 1 1 1 . Scrap Searched . | . . . . Spaces Dug 19 | 5 13 1 . Terrain Destroyed 92 | 5 34 1 52 Melee 1 | . . 1 . Projectile 21 | 5 13 . 3 AOE 70 | . 21 . 49 Terrain Rammed . | . . . . Walls Destroyed . | . . . . Machines Disabled . | . . . . Actions | -11 -10 -9 -8 --------- Run | Yrd Mat Mat Mat Total 3280 | 258 1182 875 965 Wait 107 | . 63 37 7 Move 2486 | 205 911 646 724 Hop . | . . . . Pick Up 124 | 14 46 27 37 Fast Attach 9 | 1 2 3 3 Attach 36 | 6 4 8 18 Detach 2 | . 1 . 1 Swap 65 | 5 18 16 26 Drop 88 | 3 31 22 32 Fire 361 | 24 106 114 117 Melee 2 | . . 2 . Ram . | . . . . Kick . | . . . . Crush . | . . . . Escape Stasis . | . . . . Rewire . | . . . . Trap . | . . . . Miscellaneous . | . . . . Route ------- -11/Scrapyard -10/Materials (discovered 5 exits: *Mat x3 / [*Min x2]) -9/Materials -8/Materials (discovered 2 exits: [*Fac x2]) History --------- Turn | Location | Event 2 | -11/Scrapyard | Met Revision 17 74 | -11/Scrapyard | Discovered new exit (range 8) 247 | -11/Scrapyard | Entered Materials 321 | -10/Materials | Build established: Mutant 560 | -10/Materials | Discovered new exit (range 12) 755 | -10/Materials | Discovered new exit (range 16) 923 | -10/Materials | Repaired Grenade Launcher? 1153 | -10/Materials | Discovered new exit (range 5) 1363 | -10/Materials | Discovered new exit (range 16) 1568 | -10/Materials | Discovered new exit (range 7) 1662 | -10/Materials | Entered another Materials area 1662 | -9/Materials | Evolved 2 slots: Propulsion x1, Utility x1 1742 | -9/Materials | Repaired Med. Laser 1880 | -9/Materials | Build established: Scavenger-Mutant 2253 | -9/Materials | Build established: Mutant 2641 | -9/Materials | Discovered new exit (range 13) 2887 | -9/Materials | Entered another Materials area 2887 | -8/Materials | Evolved 2 slots: Propulsion x1, Utility x1 2992 | -8/Materials | Build established: Scavenger-Mutant 3213 | -8/Materials | Lost 6 parts (1p4n1u) 3228 | -8/Materials | Discovered new exit (range 13) 3687 | -8/Materials | Discovered new exit (range 13) 4000 | -8/Materials | Core integrity fell below 50% 4020 | -8/Materials | Core integrity fell below 20% 4038 | -8/Materials | Destroyed by G-47 Trooper with Particle Gun Last Messages --------------- 04027_ U-05 Engineer destroyed. 04029_ Y-45 Defender heat damages Lgt. Treads. 04029_ G-47 Trooper destroyed. 04029_ Destroyed Imp. Ion Engine. 04030_ Y-45 Defender heat damages Lgt. Armor Plating. 04031_ Y-45 Defender heat damages Heat Sink. 04031_ Destroyed Lgt. Treads. 04031_ Destroyed Lgt. Armor Plating. 04031_ G-47 Trooper destroyed. 04032_ Y-45 Defender heat short circuits Lgt. Treads. 04033_ G-47 Trooper destroyed. 04034_ The unstable cave ceiling collapses. 04037_ Y-45 Defender destroyed. [Achievement: Killing Spree] The achievement interface (ESC then open Records) offers an effective way to explore all of your earned achievements as well as seek out new goals for future runs. 04037_ Atomic Centrifuge disabled. [Achievement: First Step to Greatness] [Achievement: 5k Club] Map ----- +----------------------------------------------------+ | ?????????????????????????????????????????????????? | | ?????????????????????????????????????????????????? | | ?????????????????????????????????????????????????? | | ?????????????????????????????????????????????????? | | ?????????????????????????????????????????????????? | | ?????????????????????????????????????????????????? | | ?????????????????????????????????????????????????? | | ?????????????????????????????????????????????????? | | ?????????????????????????????????????????????????? | | ?????????????????? ????????????????????????????? | | ?????????????????/ ????????????????????????????? | | ?????????????????# ????????????????????????????? | | ?????????????????# *#???????????????????????????? | | ????????????????[ %###?????????????????????????? | | ?????????????? u # ????????????????????????? | | ?????????????? %== ??????????????????????? | | ????????????? =%! ""??????????????????????? | | ????????????? g """??????????????????????? | | ?????????????? """??????????????????????? | | ??????????????## ??????????????????????? | | ??????????????# ! #########???????????????? | | ??????????????## #???????????????? | | ??????????????# [ "" #???????????????? | | ??????????????# % %! !!! """ #???????????????? | | ????????######### % %%= ! S" #???????????????? | | ????????# [ @! """ #???????????????? | | ????????# """ [ ![""" #??????????????? | | ????????# """ ]!=%![ #???????????????? | | ????????# """ # # #########???????????????? | | ????????# # ## ????????????????????????? | | ????????# "" """ #%[ T# ????????????????????????? | | ???[%???# "T """ /! ## ????????????????????????? | | ???!!???# "" """ # ## ????????????????????????? | | ??? ???# # ## ????????????????????????? | | ??# ???#####/#### ## ?????????????????????????? | | ??# ???????# #?? ##?????????????????????????? | | ??# #??????# #?? ?????????????????????????? | | ??# #??????# #?? ????????????????????????? | | ??# #??????# #?? ???????????????????????? | | ??# #??????# #?? #### ??????????????????????? | | ??# #??????# #??##+###???? ?????????????????????? | | ??# #??????# #????????????? ????????????????????? | | ??# #??????# #??????????????????????????????????? | | ??# #??????# #??????????????????????????????????? | | ??# #??????#%#??????????????????????????????????? | | ??# #??????#%#??????????????????????????????????? | | ??# ######## #??????????????????????????????????? | | ###!= ! %##???????????? #???????????????????? | | =%=% %%* = ########### #### ????????????? | | *[ =%! #??????????? | +----------------------------------------------------+ Best States ------------- Heat Dissipation 53 Energy Generation 16 Energy Capacity 750 Matter Stores 350 Matter Capacity 350 Sight Range 16 Robot Scan Range 14 Terrain Scan Range 16 Terrain Scan Density 10 Additional Mass Support 9 Base Temperature (-) 100 Armor Coverage 600 Resistance: KI 20 Resistance: TH 20 Resistance: EX 20 Resistance: EM 20 Resistance: I 20 Resistance: S 20 Resistance: P 20 Power Shielding 33 Evasion (%) 50 Targeting Accuracy 5 Recoil Reduction 1 Particle Charging 15 Offensive Hacking 10 Item Schematics ----------------- Med. Laser | -9/Materials | Scanalyzed Hcp. Battery | -9/Materials | Scanalyzed Weight Redist. System | -9/Materials | Scanalyzed Hcp. Matter Pod | -9/Materials | Scanalyzed Robot Schematics ------------------ None Fabricated ------------ Nothing Alien Tech Used ----------------- None Achievements -------------- 5k Club Crack Shot First Step to Greatness Hey, That's Mine! It's Just You Killing Spree Loot Pinata One Hack Too Far Part-time Mechanic Risk Taker Shopping List Uninvited Guest Challenges ------------ None Game ------ Seed ActiveRainbowWarhead Manual? 0 Play Time 02:20:48 Cumulative 2.2 hours Start 2024.05.17 @ 18:55:24 End 2024.05.17 @ 21:36:17 Sessions 3 Manual Loads 0 Difficulty Adventurer Special Mode None Game No. 1 Rogue 0 Adventurer 1 Explorer 0 Win Type - Total 0 Types 0/0/0/0/0/0/0/0/0 Lore% 0 Gallery% 3 Achievement% 4 Wizard Run 0 Options --------- Layout 0 ASCII 0 Keyboard 0 Movement Mouse Keybinds 0 Fullscreen 2 Font 36/Smallcaps Map View 76x50 Zoom Use 0% Tactical HUD 1 Map Filters NONE Filters NONE Steam 1 RUN: 64d424d1-8d63-4921-a166-825dc7d56c29